Cogmind - Beta 17 @@@ ROGUE MODE // 2026.08.04 @ 15:03:37 Player: Afro Result: Self-destructed Performance ------------- Evolutions (2) 1000 Regions Visited (3) 600 Robots Destroyed (33) 165 Value Destroyed (694) 694 Prototype IDs (0) 0 Alien Tech Used (0) 0 Bonus (0) 0 TOTAL SCORE: 2459 Bonus ------- None Cogmind --------- Core Integrity 467/550 Matter 55/300 Energy 125/125 System Corruption 0% Temperature Cool (0) Movement Treading (165) Location -8/Materials Parts ------- > --- POWER (1) -------- Light Ion Engine > --- PROPULSION (3) --- Light Treads Armored Treads Improved Aluminum Leg > --- UTILITY (4) ------ Large Storage Unit Signal Interpreter > --- WEAPON (3) ------- Light Assault Rifle Heavy Assault Cannon > --- INVENTORY (15) --- Improved Ion Engine Aluminum Leg Aluminum Leg Improved Aluminum Leg Improved Aluminum Leg Heat Sink Structural Scanner Seismic Detector Light Armor Plating Beam Rifle Beam Rifle Light Assault Rifle Light Assault Rifle Grenade Launcher Mining Laser Peak State ------------ > --- POWER ------------ Light Ion Engine > --- PROPULSION ------- Armored Treads Improved Aluminum Leg Improved Aluminum Leg > --- UTILITY ---------- Large Storage Unit Signal Interpreter > --- WEAPON ----------- Light Assault Rifle Heavy Assault Cannon > --- INVENTORY -------- Aluminum Leg Aluminum Leg Improved Aluminum Leg Improved Aluminum Leg Heat Sink Structural Scanner Seismic Detector Light Armor Plating Beam Rifle Beam Rifle Light Assault Rifle Light Assault Rifle Grenade Launcher Mining Laser [Rating: 18] Favorites ----------- Power Light Ion Engine Engine Light Ion Engine Propulsion Improved Aluminum Leg Treads Light Treads Leg Improved Aluminum Leg Utility Large Storage Unit Device Seismic Detector Storage Large Storage Unit Processor Signal Interpreter Protection Light Armor Plating Weapon Light Assault Rifle Energy Gun Beam Rifle Ballistic Gun Light Assault Rifle Ballistic Cannon Light Cannon Launcher Grenade Launcher Special Weapon Mining Laser Build | -11 -10 -10 -8 ------- Run | Yrd Mat Sub Mat Slots Evolved 4 | . . . 4 Power . | . . . . Propulsion 1 | . . . 1 Utility 2 | . . . 2 Weapon 1 | . . . 1 Parts Attached 26 | 8 10 5 3 Power 4 | 1 2 1 . Engine 4 | 1 2 1 . Core . | . . . . Reactor . | . . . . Propulsion 7 | 2 3 . 2 Treads 4 | 2 . . 2 Leg 3 | . 3 . . Wheel . | . . . . Hover . | . . . . Flight . | . . . . Utility 6 | 2 2 2 . Device 2 | 1 1 . . Storage 2 | 1 1 . . Processor 1 | . . 1 . Hackware . | . . . . Protection 1 | . . 1 . Artifact . | . . . . Weapon 9 | 3 3 2 1 Energy Gun 1 | . 1 . . Energy Cannon . | . . . . Ballistic Gun 4 | 3 1 . . Ballistic Cannon 2 | . 1 . 1 Launcher 1 | . . 1 . Special Weapon 1 | . . 1 . Impact Weapon . | . . . . Slashing Weapon . | . . . . Piercing Weapon . | . . . . Special Melee Weapon . | . . . . Unidentified Prototypes . | . . . . Parts Lost 2 | . 1 1 . Power 2 | . 1 1 . Propulsion . | . . . . Utility . | . . . . Weapon . | . . . . Highest Loss Streak 1 | . 1 1 . To Critical Strikes . | . . . . Average Backups 14 | 4 14 14 14 Power . | 1 1 . . Propulsion 4 | 1 4 4 4 Utility 2 | . 2 4 4 Weapon 5 | 1 6 6 6 Tool/Special . | . . . . Unused Backups 10 | . 1 . 9 Power 1 | . . . 1 Propulsion 5 | . 1 . 4 Utility 1 | . . . 1 Weapon 3 | . . . 3 Tool/Special . | . . . . Average Slot Usage (%) 97 | . 99 100 66 Engine 13 | . 14 14 9 Treads 8 | . 15 . 6 Leg 18 | . 12 28 15 Device 11 | . 14 11 . Storage 13 | . 14 14 9 Ballistic Gun 17 | . 21 13 9 Ballistic Cannon 8 | . 5 13 9 Peak Build Rating 18 | 7 10 10 18 Average Rating 10 | 5 9 9 16 On Entrance 6 | . 7 10 10 Avg Prop Armor Cover (%) 6 | . . . 6 Naked Turns . | . . . . Heaviest Build 36 | 14 31 30 36 Greatest Support 40 | 40 40 26 40 Greatest Overweight (x) 1 | . 1 1 1 Average Overweight (x) . | . . 1 . Largest Inventory Capacity 15 | 8 15 15 15 Average Capacity 14 | 6 14 15 15 Most Carried 15 | 7 15 15 15 Average Carried 14 | 4 14 14 14 Final Capacity 15 | 8 15 15 15 Final Carried 15 | 6 15 14 15 Class Distribution -------------------- 91% | Mutant 8% | Gunner Dominant Class ---------------- Mutant | -10/Materials Mutant | -10/Subcaves Gunner | -8/Materials Resources | -11 -10 -10 -8 ----------- Run | Yrd Mat Sub Mat Matter Collected 794 | 304 430 4 56 Remotely . | . . . . Salvage Created 957 | 170 611 101 75 Parts 77 | 12 44 7 14 Haulers Intercepted . | . . . . Recyclers Shooed 4 | . 4 . . Parts Field Recycled . | . . . . Retrieved Matter . | . . . . Parts Self-Destructed 7 | . . 7 . Prevented . | . . . . Parts Restored . | . . . . Kills | -11 -10 -10 -8 ------- Run | Yrd Mat Sub Mat Combat Hostiles Destroyed 23 | . 15 4 4 Guns 18 | . 11 4 3 Cannons 5 | . 4 . 1 Classes Destroyed 9 | 3 4 1 1 Worker 1 | 1 . . . Builder 3 | . 2 . 1 Tunneler 3 | 3 . . . Recycler 2 | 1 1 . . Operator 1 | . 1 . . Swarmer 9 | . 3 3 3 Grunt 12 | . 12 . . Sentry 1 | . . . 1 Subdweller 1 | . . 1 . Best Kill Streak 4 | 4 3 3 2 Combat Bots Only 3 | . 3 3 2 Max Kills in Single Turn 2 | 2 1 1 1 Gunslinging . | . . . . Exploded . | . . . . Melee . | . . . . Uniques/NPCs Destroyed . | . . . . Combat | -11 -10 -10 -8 -------- Run | Yrd Mat Sub Mat Hostile Shots Fired 165 | . 93 24 48 Missed 48 | . 25 10 13 Hits 117 | . 68 14 35 Projectile 117 | . 68 14 35 Critical Strikes 2 | . 1 1 . Damage Taken 1324 | . 773 220 331 Core 307 | . 163 61 83 Absorbed by Shields . | . . . . Core Remaining (%) 55 | 100 . 10 . Volleys Fired 110 | 6 73 17 14 Largest 2 | 2 2 2 2 Hottest 100 | 40 76 100 70 Shots Fired 215 | 12 146 29 28 Gun 164 | 12 122 16 14 Cannon 50 | . 24 12 14 Launcher . | . . . . Special 1 | . . 1 . Kinetic 194 | 12 126 28 28 Thermal 21 | . 20 1 . Explosive . | . . . . Electromagnetic . | . . . . Robot Hit Streak 12 | 5 12 9 6 Robot Miss Streak 5 | 3 3 1 5 Penetration Max . | . . . . Secondary Targets . | . . . . Shots Hit Robots 132 | 7 91 22 12 Core Hits 55 | 6 36 7 6 Critical Kills . | . . . . Critical Parts Destroyed . | . . . . Critical Strikes 5 | . 1 2 2 Burn 1 | . 1 . . Blast 4 | . . 2 2 Melee Attacks . | . . . . Impact . | . . . . Slashing . | . . . . Piercing . | . . . . Sneak Attacks . | . . . . Combat Hostiles . | . . . . Follow-up Attacks . | . . . . Damage Inflicted 1729 | 90 1148 195 296 Guns 1052 | 90 826 74 62 Cannons 653 | . 298 121 234 Explosions . | . . . . Melee . | . . . . Ramming 24 | . 24 . . Kinetic 1504 | 90 923 195 296 Thermal 201 | . 201 . . Explosive . | . . . . Electromagnetic . | . . . . Impact . | . . . . Slashing . | . . . . Piercing . | . . . . Highest Corruption . | . . . . Average Corruption . | . . . . Corruption Purged . | . . . . Corruption Blocked . | . . . . Overload Shots . | . . . . Overflow Damage . | . . . . Projectiles . | . . . . Explosions . | . . . . Melee . | . . . . Knockbacks 13 | . 6 5 2 Impact 1 | . 1 . . Kinetic 11 | . 5 4 2 Secondary 1 | . . 1 . Self-Inflicted Damage . | . . . . Shots . | . . . . Rammed 1 | . 1 . . Targets Rammed 4 | . 4 . . Kicked 3 | . 3 . . Crushed . | . . . . Highest Temperature 177 | . 177 . 6 Average Temperature 42 | . 43 . 4 Received Heat Transfer 426 | . 399 . 27 Siege Activations . | . . . . Martial Activations . | . . . . Shielding Activations . | . . . . Robots Disrupted . | . . . . Combat Hostiles . | . . . . Robots Corrupted . | . . . . Combat Hostiles . | . . . . Parts Fried . | . . . . Impact Corruptions . | . . . . Robots Melted . | . . . . Combat Hostiles . | . . . . Parts Melted . | . . . . Heat Transferred 592 | . 592 . . Parts Sabotaged . | . . . . Parts Stolen . | . . . . Parts Stripped . | . . . . Power Chain Reactions . | . . . . Alert | -11 -10 -10 -8 ------- Run | Yrd Mat Sub Mat Maximum Alert Level . | . . . . Low Security (%) 100 | 100 100 . 100 Level 1 . | . . . . Level 2 . | . . . . Level 3 . | . . . . Level 4 . | . . . . Level 5 . | . . . . High Security . | . . . . Max Security . | . . . . Peak Influence 102 | 15 77 . 102 Initial 31 | . 3 . 31 Average 27 | 2 24 . 58 Influence Increases 714 | 25 478 70 141 Destroy 0b10 Robot/C 440 | . 300 60 80 Destroy 0b10 Robot/NC 50 | 25 20 . 5 Destroy Leader 110 | . 80 10 20 Successful Hack 16 | . 16 . . Disable Machine 30 | . . . 30 Destroy Structure 8 | . 2 . 6 Partial Spotted 15 | . 15 . . Lose Combat Pursuer 45 | . 45 . . Influence Decreases 672 | 20 453 40 159 Entered New Map 46 | . 2 15 29 Time Decay 626 | 20 451 25 130 Squads Dispatched 7 | . 5 . 2 Investigation 3 | . 1 . 2 Extermination . | . . . . Reinforcement 4 | . 4 . . Assault . | . . . . Garrison . | . . . . Intercept . | . . . . Searches Triggered . | . . . . Construction Impeded . | . . . . Haulers Reinforced . | . . . . Active Scanning Responses . | . . . . Cargo Convoy Interrupts . | . . . . Stealth | -11 -10 -10 -8 --------- Run | Yrd Mat Sub Mat Distress Signals 3 | . 3 . . Communications Jammed . | . . . . Distress Signals . | . . . . Times Spotted 41 | . 29 5 7 Peak Tracking Total 3 | . 3 3 3 Tactical Retreats 3 | . 2 1 . Traps | -11 -10 -10 -8 ------- Run | Yrd Mat Sub Mat Traps Triggered 1 | . 1 . . Indirectly . | . . . . Trap Hack Attempts . | . . . . Triggered . | . . . . Disarmed . | . . . . Reprogrammed . | . . . . Reused . | . . . . Traps Extracted . | . . . . Installed . | . . . . Triggered . | . . . . Machines | -11 -10 -10 -8 ---------- Run | Yrd Mat Sub Mat Machines Disabled 2 | . . . 2 Max in Single Turn 1 | . . . 1 Machines Repaired . | . . . . Machines Dismantled . | . . . . Machines Sabotaged . | . . . . Overloaded Fab Kills . | . . . . Hacking | -11 -10 -10 -8 --------- Run | Yrd Mat Sub Mat Machines Accessed 6 | . 4 . 2 Terminals 5 | . 3 . 2 Fabricators . | . . . . Repair Stations . | . . . . Recycling Units 1 | . 1 . . Scanalyzers . | . . . . Garrison Access . | . . . . Total Hacks 13 | . 7 . 6 Successful 7 | . 5 . 2 Failed 6 | . 2 . 4 Catastrophic 2 | . 1 . 1 Database Lockouts . | . . . . Manual 13 | . 7 . 6 Terminals 12 | . 6 . 6 Fabricators . | . . . . Repair Stations . | . . . . Recycling Units 1 | . 1 . . Scanalyzers . | . . . . Garrison Access . | . . . . Terminal Hacks 2 | . 1 . 1 Robot Analysis 1 | . 1 . . Branch Access Points 1 | . . . 1 Fabricator Hacks . | . . . . Repair Station Hacks . | . . . . Recycling Unit Hacks . | . . . . Scanalyzer . | . . . . Garrison Access Hacks . | . . . . Unauthorized Hacks 4 | . 3 . 1 Terminals 4 | . 3 . 1 Track 1 | . 1 . . Botnet 3 | . 2 . 1 Fabricators . | . . . . Repair Stations . | . . . . Recycling Units . | . . . . Scanalyzers . | . . . . Garrison Access . | . . . . Data Cores Recovered . | . . . . Used . | . . . . Hacking Detections 5 | . 3 . 2 Full Trace Events 2 | . . . 2 Feedback Events . | . . . . Feedback Blocked . | . . . . Robot Schematics Acquired . | . . . . Robots Built . | . . . . Authchips . | . . . . Time . | . . . . Total Robot Build Rating . | . . . . Part Schematics Acquired . | . . . . Parts Built . | . . . . Authchips . | . . . . Time . | . . . . Total Part Build Rating . | . . . . Part Studies Acquired . | . . . . Parts Repaired . | . . . . Time . | . . . . Parts Recycled . | . . . . Recycled Matter . | . . . . Retrieved Matter . | . . . . Retrieved Components . | . . . . Parts Scanalyzed . | . . . . Part Schematics Acquired . | . . . . Parts Damaged . | . . . . Bothacking | -11 -10 -10 -8 ------------ Run | Yrd Mat Sub Mat Used RIF Installer . | . . . . Robots Hacked . | . . . . Non-combat . | . . . . Combat . | . . . . Robot Hacks Applied . | . . . . Relay Couplers Released . | . . . . Fabnet Peak Effective % . | . . . . Robots Rewired . | . . . . Allies Hacked . | . . . . Hacks Repelled . | . . . . Allies | -11 -10 -10 -8 -------- Run | Yrd Mat Sub Mat Total Allies . | . . . . Largest Group . | . . . . Highest-Rated Group . | . . . . Highest-Rated Ally . | . . . . Total Orders . | . . . . Ally Attacks . | . . . . Total Damage . | . . . . Kills . | . . . . Allies Corrupted . | . . . . Allies Melted . | . . . . Intel | -11 -10 -10 -8 ------- Run | Yrd Mat Sub Mat Active Infowar (turns) 2709 | 11 1710 988 . Structural 565 | . 470 95 . Seismic 2144 | 11 1240 893 . Robot Analysis Total 1 | . 1 . . Derelict Logs Recovered 1 | . . 1 . Drone Launches . | . . . . Drone Recoveries . | . . . . Exploration | -11 -10 -10 -8 ------------- Run | Yrd Mat Sub Mat Turns Passed 3304 | 114 1711 1211 268 Spaces Moved 1493 | 55 726 592 120 Core 7 | 7 . . . Treads 468 | 48 367 . 53 Legs 1018 | . 359 592 67 Wheels . | . . . . Hover . | . . . . Flight . | . . . . Fastest Speed 50 | 50 160 190 165 Average Speed 180 | 146 174 190 178 Slowest Speed 190 | 160 190 190 190 Overloaded Moves . | . . . . Propulsion Burnouts . | . . . . Robots Hopped . | . . . . Potential Cave-ins . | . . . . Cave-ins Triggered . | . . . . Exploration Rate (%) 34 | 5 90 30 14 Regions Visited 3 Branch Regions 1 Pre-discovered Areas . | . . . . Known Exits Taken 1 | . . 1 . Unknown Exits Taken 2 | 1 1 . . Scrap Searched . | . . . . Spaces Dug . | . . . . Terrain Destroyed 4 | . . . 4 Melee . | . . . . Projectile 4 | . . . 4 AOE . | . . . . Terrain Rammed . | . . . . Walls Destroyed . | . . . . Machines Disabled . | . . . . Actions | -11 -10 -10 -8 --------- Run | Yrd Mat Sub Mat Total 1890 | 74 1029 647 140 Wait 220 | . 190 30 . Move 1490 | 54 725 591 120 Hop . | . . . . Pick Up 21 | 6 14 . 1 Fast Attach 13 | 6 4 . 3 Attach 4 | 1 2 1 . Detach 1 | . 1 . . Swap 15 | 1 6 8 . Drop 12 | . 10 . 2 Fire 110 | 6 73 17 14 Melee . | . . . . Ram . | . . . . Kick 3 | . 3 . . Crush 1 | . 1 . . Escape Stasis . | . . . . Rewire . | . . . . Trap . | . . . . Miscellaneous . | . . . . Route ------- -11/Scrapyard -10/Materials (discovered 4 exits: [*Mat x2] / [*Min] / [*Sub]) -10/Subcaves -8/Materials History --------- Turn | Location | Event 8 | -11/Scrapyard | Discovered new exit (range 13) 115 | -11/Scrapyard | Entered Materials 311 | -10/Materials | Build established: Mutant 593 | -10/Materials | Discovered new exit (range 8) 1041 | -10/Materials | Core integrity fell below 50% 1097 | -10/Materials | Discovered new exit (range 16) 1258 | -10/Materials | Discovered new exit (range 4) 1801 | -10/Materials | Discovered new exit (range 6) 1826 | -10/Materials | Entered Subcaves 2834 | -10/Subcaves | Core integrity fell below 20% 2908 | -10/Subcaves | Learned Materials security intel 3024 | -10/Subcaves | Discovered new exit (range 6) 3037 | -10/Subcaves | Identified exit to Materials 3037 | -10/Subcaves | Entered Materials 3037 | -8/Materials | Evolved 4 slots: Propulsion x1, Utility x2, Weapon x1 3305 | -8/Materials | Self-destructed Last Messages --------------- off. 03188_ Y-45 Defender destroyed. 03188_ Repair Station disabled. 03188_ Backup Plating I tumbles out of repair station. 03189_ U-05 Engineer builds a Door. 03214_ Dropped Imp. Aluminum Leg. 03215_ Acquired Lgt. Treads. 03218_ Acquired Imp. Ion Engine. 03219_ Acquired 43 matter. 03305_ Connecting with Terminal... >>Trojan(Botnet) Trojan loaded successfully. Testing... Terminal linked with 0 systems. Awaiting botnet instructions. >>Access(Branch) No branch access points found. 03305_ ALERT: Suspicious activity at Terminal M003. Dispatching Investigation squad. Map ----- +----------------------------------------------------+ | ??????# """ # % " #?????????? | | ??????# """*#== *%% "%"/ ???????? | | ??????# """!+ %*#/############# # ????????? | | ??????# !#|= #== #?????????????????????? | | ??????#+##### #= #?????????????????????? | | ??????# #### # #?????????????????????? | | ??????+ # #?????????????????????? | | ??????# # #?????????????????????? | | ??????# # #?????????????????????? | | ??###+# ## #?????????????????????? | | ??# ^ ########?????????????????????? | | ??# #??####??????????????????????? | | ??# #? ?#?????????????????????? | | ??# #? #?????????????????????? | | ??# """ """ # " ?????????????????????? | | ??# """ """ # "R" #?????????????????????? | | ??# """ ^""" !+ """ #?????????????????????? | | ??# """ """ # #?????????????????????? | | ??# """ " = ##?##+##?????????????????????? | | ??# #### ######?????????????????? | | ??# #?????????????????? | | ??# +?????????????????? | | ??# [ ##+###### #?????????????????? | | ??# ########### #????????????????????? | | ??# ########### #????????????????????? | | ??# + ## ""@ #????????????????????? | | ??# # """ ## "T #????????????????????? | | ??# # """"" ## "" [#????????????????????? | | ??##### """"" ## #????????????????????? | | ??????# """"" #########????????????????????? | | ??????# """ #????????????????????????????? | | ??????# #????????????????????????????? | | ??????# #????????????????????????????? | | ??????# #????????????????????????????? | | ??????##########????????????????????????????? | | ????????????????????????????????????????????? | | ????????????????????????????????????????????? | | ????????????????????????????????????????????? | | ????????????????????????????????????????????? | | | | | | | | | | | | | | | | | | | | | | | +----------------------------------------------------+ Best States ------------- Heat Dissipation 31 Energy Generation 10 Energy Capacity 250 Matter Stores 300 Matter Capacity 300 Sight Range 16 Terrain Scan Density 10 Armor Coverage 150 Evasion (%) 40 Recoil Reduction 2 Item Schematics ----------------- None Robot Schematics ------------------ None Fabricated ------------ Nothing Repaired ---------- Nothing Studied --------- None Alien Tech Used ----------------- None Achievements -------------- None Challenges ------------ None Game ------ Seed FrostThermicChainsword Manual? 0 Play Time 00:21:03 Cumulative 81.0 hours Start 2026.08.04 @ 11:41:03 End 2026.08.04 @ 15:03:37 Sessions 2 Manual Loads 0 Difficulty Rogue Special Mode None Game No. 64 Rogue 64 Adventurer 0 Explorer 0 Win Type - Total 1 Types 1/0/0/0/0/0/0/0/0/0 Lore% 23 Gallery% 33 Achievement% 27 Wizard Run 0 Options --------- Layout 1 ASCII 0 Keyboard 0 Movement Mouse Keybinds 0 Fullscreen 2 Font 24/Smallcaps Map View 50x35 Zoom Use 0% Tactical HUD 1 Map Filters NONE Filters NONE Steam 1 RUN: c735b6c7-a2b9-4896-bd72-cffb3d5dc60c